bitfinex-derivatives/quotes_SOLF0:USTF0_20241206
["timestamp","ask_amount","ask_price","bid_price","bid_amount"]
[1733523479157,4.1384,237.84,237.83,4.88847131]
[1733523479462,2.04,237.85,237.83,4.88847131]
[1733523479657,2.04,237.85,237.84,4.88847131]
[1733523480156,2.04,237.85,237.84,1.87997487]
[1733523480553,2.04,237.85,237.7,6.78254326]
[1733523480753,2.04,237.85,237.77,2.1391675]
[1733523480952,2.04,237.85,237.7,6.78254326]
[1733523480953,4.1938,238.01,237.74,2.04]
[1733523481155,2.0979,237.89,237.83,2.0984]
[1733523481459,2.04,237.88,237.84,1.88024783]
[1733523481656,2.04,237.88,237.85,1.88024783]
[1733523481964,4.138,237.88,237.83,2.0984]
[1733523482160,4.138,237.88,237.84,1.88044932]
[1733523482363,4.138,237.88,237.85,1.88044932]
[1733523482561,4.138,237.88,237.83,2.0984]
[1733523482785,4.138,237.88,237.84,1.88067229]
[1733523483062,4.138,237.88,237.85,1.88067229]
[1733523483358,4.138,237.88,237.83,2.0984]
[1733523483359,4.138,237.88,237.86,1.88090695]
[1733523483563,4.138,237.88,237.84,2.0983]
[1733523483863,4.138,237.88,237.85,1.88118287]
[1733523484063,4.138,237.88,237.84,2.0983]
[1733523484256,4.138,237.88,237.85,1.88141951]
[1733523484458,4.138,237.88,237.86,1.88141951]
[1733523484657,4.138,237.88,237.84,2.0983]
[1733523484863,4.138,237.88,237.85,1.88177479]
[1733523485060,4.138,237.88,237.86,1.88177479]
[1733523485262,4.138,237.88,237.85,2.0982]
[1733523485565,2.04,237.88,237.86,1.882625]
[1733523485763,2.04,237.88,237.87,1.882625]
[1733523486257,2.04,237.88,237.87,4.89618794]
[1733523486463,2.04,237.88,237.87,1.882625]
[1733523488257,4.0979,237.89,237.87,1.882625]
[1733523488564,4.0979,237.89,237.88,1.882625]
[1733523490564,4.0979,237.89,237.88,4.90428048]
[1733523490966,2.0976,237.93,237.89,2.0978]
[1733523491168,2.0,237.92,237.9,1.882625]
[1733523491372,2.0,237.92,237.91,4.90690191]
[1733523491573,2.0,237.95,237.92,2.0975]
[1733523491772,2.0,237.95,237.75,1.3288]
[1733523491773,3.9156,238.0,237.93,1.882625]
[1733523491974,2.0,237.99,237.94,1.882625]
[1733523492169,3.9156,238.0,237.95,1.882625]
[1733523492170,2.0,237.98,237.95,1.882625]
[1733523492476,2.0,237.99,237.96,4.90985811]
[1733523492774,2.0,237.99,237.97,4.90985811]
[1733523493074,1.3827,238.07,237.98,4.91006799]
[1733523493276,3.374,238.06,237.99,4.9133652]
[1733523493575,2.0971,237.98,237.94,2.0974]
[1733523493770,2.0971,237.98,237.95,8.7132997]
[1733523493965,4.097,237.99,237.96,8.7132997]
[1733523494166,4.097,237.99,237.97,4.92448792]
[1733523494371,4.097,237.99,237.98,8.71932758]
[1733523495277,4.097,237.99,237.98,11.80326962]
[1733523495575,4.097,237.99,237.98,8.00842996]
[1733523496772,4.097,237.99,237.98,1.89386845]
[1733523497080,4.097,237.99,237.92,2.0976]
[1733523497081,2.0973,237.97,237.92,2.0976]
[1733523497379,2.0,237.99,237.93,12.72922174]
[1733523497575,2.0,237.99,237.94,7.79674089]
[1733523497775,2.0,237.99,237.95,7.79674089]
[1733523497974,2.0,237.99,237.96,7.79674089]
[1733523498176,2.0,237.99,237.97,1.81304879]
[1733523498480,2.0,237.99,237.98,1.81304879]
[1733523498481,4.097,237.99,237.98,1.81304879]
[1733523498880,2.0978,237.92,237.87,2.16215984]
[1733523499075,1.374,238.06,237.88,14.54044052]
[1733523499076,2.0,237.94,237.88,14.54044052]
[1733523499380,2.0,237.94,237.87,2.0981]
[1733523499381,2.0,237.93,237.89,14.54044052]
[1733523499575,2.0978,237.91,237.9,5.98269355]
[1733523500381,2.0978,237.91,237.9,3.08247323]
[1733523500571,2.0978,237.91,237.9,5.96798843]
[1733523501178,2.0,237.92,237.82,2.16189391]
[1733523501479,2.0,237.92,237.83,14.51211641]
[1733523501680,2.0,237.92,237.84,14.51211641]
[1733523501875,2.0,237.92,237.85,5.96991175]
[1733523502081,2.0,237.92,237.86,5.96991175]
[1733523502282,2.0,237.92,237.84,2.0984]
[1733523502579,2.0,237.92,237.85,5.97091969]
[1733523502881,2.0,237.92,237.84,2.0984]
[1733523503075,2.0,237.92,237.85,5.97115159]
[1733523503275,2.0,237.92,237.84,2.0984]
[1733523504182,2.0,237.92,237.79,2.0]
[1733523504374,2.0,237.92,237.8,14.51803891]
[1733523504682,2.0,237.92,237.81,5.97233299]
[1733523504883,2.0,237.92,237.82,2.88725418]
[1733523505086,2.0984,237.85,237.81,2.0986]
[1733523505780,2.0984,237.84,237.81,2.0986]
[1733523505984,2.0984,237.84,237.8,2.0988]
[1733523506284,2.0986,237.83,237.76,2.0]
[1733523506476,2.0986,237.83,237.77,5.97283036]
[1733523506674,2.0,237.87,237.78,5.97283036]
[1733523506879,2.0983,237.86,237.8,2.0988]
[1733523509887,2.0984,237.85,237.8,2.0988]
[1733523510979,2.0983,237.86,237.8,2.0988]
[1733523511183,2.0983,237.86,237.81,1.80385598]
[1733523511384,2.0983,237.86,237.8,2.0988]
[1733523511689,2.0983,237.86,237.81,1.80380135]
[1733523511989,2.0983,237.86,237.8,2.0988]
[1733523512789,2.0983,237.86,237.81,1.80375206]
[1733523512989,2.0983,237.86,237.8,2.0988]
[1733523515093,1.2763,237.96,237.76,2.0]
[1733523515388,2.0,237.95,237.77,7.77365225]
[1733523515584,2.0,237.95,237.78,7.77343275]
[1733523515789,2.0,237.95,237.79,7.77343275]
[1733523515991,2.0,237.95,237.81,2.0986]
[1733523516393,2.0983,237.87,237.82,2.0986]
[1733523516593,4.0983,237.87,237.82,2.0986]
[1733523516792,2.0,237.87,237.76,2.0]
[1733523516993,2.0,237.87,237.77,7.77305929]
[1733523517191,2.0,237.87,237.78,7.77305929]
[1733523517392,2.0,237.87,237.79,1.80347107]
[1733523517592,2.0983,237.86,237.81,2.0987]
[1733523521790,2.0983,237.86,237.82,1.80310618]
[1733523521987,2.0983,237.86,237.81,2.0987]
[1733523522193,2.0983,237.86,237.82,1.80308533]
[1733523522498,2.0,237.87,237.82,2.0986]
[1733523522499,4.0982,237.87,237.82,2.0986]
[1733523522997,4.0982,237.87,237.83,1.80302042]
[1733523523198,4.0982,237.87,237.82,2.0986]
[1733523523396,4.0982,237.87,237.83,1.80300743]
[1733523523592,4.0982,237.87,237.82,2.0986]
[1733523524587,4.0982,237.87,237.76,2.0]
[1733523524786,4.0982,237.87,237.83,2.0985]
[1733523528801,2.0,237.99,237.84,1.80294034]
[1733523529104,2.0,237.98,237.85,4.6878339]
[1733523529300,1.33,238.05,237.86,1.80294034]
[1733523529605,2.0,238.04,237.9,2.0979]
[1733523529803,2.0,238.04,237.84,1.3349]
[1733523530006,2.0975,237.96,237.91,2.0978]
[1733523530303,2.0,237.95,237.91,2.0978]
[1733523530799,4.0975,237.95,237.91,2.0978]
[1733523531804,2.0975,237.95,237.91,2.0978]
[1733523532001,4.0975,237.95,237.91,2.0978]
[1733523534406,2.0975,237.95,237.91,2.0978]
[1733523536199,2.0,237.96,237.84,1.3349]
[1733523536405,2.0975,237.95,237.9,2.0978]
[1733523537103,2.0975,237.95,237.91,2.0978]
[1733523537705,2.0,237.96,237.84,1.3349]
[1733523537905,2.0,237.96,237.91,2.0978]
[1733523538699,2.0975,237.95,237.91,2.0978]
[1733523539099,2.0,237.96,237.84,1.3349]
[1733523539297,2.0,237.96,237.87,2.0981]
[1733523539507,1.375,237.95,237.87,2.0981]
[1733523540207,2.0979,237.91,237.87,2.0981]
[1733523541001,2.0,237.9,237.84,2.0984]
[1733523541203,2.0,237.9,237.76,1.3611]
[1733523541403,2.0984,237.86,237.81,2.0987]
[1733523541604,2.0,237.9,237.76,3.3611]
[1733523541803,2.0,237.9,237.77,7.77188448]
[1733523542009,2.0,237.9,237.78,1.80317487]
[1733523542207,2.0,237.9,237.79,1.80317487]
[1733523542407,2.0,237.9,237.76,1.3611]
[1733523542704,2.0985,237.84,237.79,2.0989]
[1733523542912,4.0985,237.84,237.8,1.80348395]
[1733523543110,4.0985,237.84,237.79,2.0989]
[1733523543406,4.0985,237.84,237.8,1.80370639]
[1733523543607,4.0985,237.84,237.79,2.0989]
[1733523543802,4.0985,237.84,237.7,3.16190598]
[1733523543803,2.0,237.84,237.7,3.16190598]
[1733523543999,2.0,237.84,237.71,18.31750221]
[1733523544201,2.0,237.84,237.72,16.31750221]
[1733523544401,2.0989,237.79,237.73,11.38267708]
[1733523544605,2.0989,237.79,237.74,1.80369084]
[1733523544803,2.0989,237.79,237.69,3.2978]
[1733523545008,2.0989,237.79,237.75,1.80387899]
[1733523545207,2.0989,237.79,237.69,3.2978]
[1733523545410,2.0989,237.79,237.7,11.38208309]
[1733523545609,2.0,237.79,237.71,7.77380582]
[1733523545907,2.0,237.79,237.72,1.80362676]
[1733523546105,2.0,237.79,237.67,2.0]
[1733523546310,2.0,237.79,237.69,2.0997]
[1733523546506,2.0,237.79,237.7,1.80295909]
[1733523546812,2.0,237.79,237.69,2.0997]
[1733523547215,2.0991,237.76,237.7,2.0997]
[1733523547411,2.0,237.79,237.65,2.0]
[1733523547610,2.0,237.79,237.66,7.76665848]
[1733523547914,2.0,237.79,237.74,2.0993]
[1733523549306,2.0,237.79,237.65,2.0]
[1733523549307,2.0,237.79,237.73,2.0994]
[1733523549513,2.099,237.78,237.73,2.0994]
[1733523550711,2.0,237.79,237.65,2.0]
[1733523550918,2.0991,237.77,237.71,2.0995]
[1733523552523,2.0991,237.77,237.66,2.0]
[1733523552725,2.0991,237.77,237.72,2.0995]
[1733523557527,2.0992,237.76,237.72,2.0995]
[1733523557826,2.0,237.78,237.63,2.0]
[1733523558026,2.0,237.78,237.64,7.74747147]
[1733523558226,2.0,237.78,237.65,1.79698607]
[1733523558526,2.0,237.78,237.68,2.0998]
[1733523559027,2.0995,237.72,237.67,2.0999]
[1733523559424,2.0995,237.72,237.62,1.3402]
[1733523559425,2.0995,237.72,237.62,3.3402]
[1733523559821,2.0995,237.72,237.63,1.79586063]
[1733523560129,2.0995,237.72,237.64,1.79586063]
[1733523560428,2.0995,237.72,237.62,3.3402]
[1733523560629,2.0995,237.72,237.63,1.79520745]
[1733523560924,2.0995,237.72,237.67,2.0999]
[1733523561523,2.0998,237.69,237.64,2.1002]
[1733523563623,1.3359,237.72,237.58,2.0]
[1733523563624,2.0,237.7,237.58,2.0]
[1733523564026,2.0,237.7,237.61,2.1004]
[1733523564027,2.1,237.67,237.61,2.1004]
[1733523564325,286.0,237.89,237.56,2.0]
[1733523564525,2.0994,237.74,237.64,2.1002]
[1733523564721,4.0994,237.74,237.57,6.2015]
[1733523564922,4.0994,237.74,237.58,9.72851129]
[1733523565125,4.0994,237.74,237.59,1.79250978]
[1733523565327,4.0994,237.74,237.6,1.79250978]
[1733523565526,4.0994,237.74,237.67,2.0999]
[1733523567040,4.0994,237.74,237.58,2.0]
[1733523567336,4.0994,237.74,237.68,2.0998]
[1733523570042,2.099,237.79,237.73,2.0994]
[1733523570241,2.0,237.78,237.64,1.3704]
[1733523570741,2.099,237.78,237.71,2.0995]
[1733523570944,2.0,237.77,237.64,1.3704]
[1733523571143,2.0,237.77,237.65,1.79095696]
[1733523571442,2.0,237.77,237.72,2.0995]
[1733523572839,2.0,237.77,237.74,2.0993]
[1733523574349,2.0,237.78,237.74,2.0993]
[1733523576243,1.3737,237.82,237.78,2.0989]
[1733523576545,2.0,237.81,237.78,2.0989]
[1733523579352,3.4723,237.82,237.68,2.0]
[1733523579353,1.3737,237.82,237.68,2.0]
[1733523579650,2.0,237.84,237.69,3.07139427]
[1733523579846,1.4099,237.88,237.7,4.86641871]
[1733523580146,1.4099,237.88,237.71,7.73889358]
[1733523580346,2.0,237.9,237.72,7.73889358]
[1733523580651,2.0,237.9,237.73,11.08749358]
[1733523580845,2.0,237.9,237.74,1.79502444]
[1733523581046,2.0,237.9,237.73,3.3486]
[1733523581047,2.0,237.9,237.75,1.79502444]
[1733523581246,2.0,237.9,237.76,1.79502444]
[1733523581447,2.0,237.9,237.77,1.79502444]
[1733523581746,2.0,237.9,237.73,1.3486]
[1733523581948,2.0985,237.83,237.77,2.099]
[1733523583248,2.0987,237.82,237.76,2.0991]
[1733523583849,2.0987,237.82,237.77,2.099]
[1733523584952,2.0,237.82,237.77,2.099]
[1733523586449,4.0986,237.82,237.77,2.099]
[1733523587448,1.3109,237.92,237.74,2.0]
[1733523587752,1.3109,237.92,237.75,1.800869]
[1733523587753,2.0,237.91,237.75,1.800869]
[1733523588050,2.0,237.91,237.76,7.76371584]
[1733523588255,2.0981,237.88,237.82,2.0985]
[1733523588449,2.0,237.91,237.74,2.0]
[1733523588753,2.0,237.91,237.75,11.36515247]
[1733523588953,2.0,237.91,237.76,7.76297005]
[1733523589152,2.0,237.91,237.77,7.76297005]
[1733523589348,2.0,237.91,237.78,1.80057952]
[1733523589648,2.098,237.89,237.79,1.80057952]
[1733523589950,2.098,237.89,237.8,1.80057952]
[1733523590148,2.098,237.89,237.83,2.0984]
[1733523590354,2.098,237.89,237.74,2.0]
[1733523590557,2.098,237.89,237.79,2.0989]
[1733523590749,2.098,237.89,237.8,1.79990135]
[1733523590946,2.098,237.89,237.81,1.79990135]
[1733523591149,2.098,237.89,237.83,2.0984]
[1733523591347,2.098,237.89,237.79,2.0]
[1733523591745,2.098,237.89,237.8,1.79934623]
[1733523591950,2.098,237.89,237.81,1.79934623]
[1733523592152,2.098,237.89,237.79,2.0]
[1733523592350,2.098,237.89,237.83,2.0984]
[1733523593256,2.0981,237.88,237.83,2.0984]
[1733523593754,2.0981,237.88,237.84,2.0984]
[1733523595756,2.0,237.9,237.73,1.3486]
[1733523595951,2.0,237.9,237.74,13.34667965]
[1733523596153,2.0,237.9,237.75,7.75035466]
[1733523596356,2.0984,237.85,237.8,2.0988]
[1733523596558,2.0,237.85,237.73,1.3486]
[1733523596759,2.0,237.85,237.74,3.79749685]
[1733523596957,2.0987,237.82,237.75,1.79749685]
[1733523597264,2.0987,237.82,237.74,2.0]
[1733523598060,2.0987,237.82,237.77,2.099]
[1733523599151,2.0987,237.82,237.78,2.0989]
[1733523599753,2.0,237.85,237.78,2.0989]
[1733523599954,2.0985,237.83,237.78,2.0989]
[1733523600653,2.0985,237.83,237.74,2.0]
[1733523600850,2.0985,237.83,237.79,2.0989]
[1733523601462,2.0,237.85,237.79,2.0988]
[1733523602761,2.0986,237.83,237.79,2.0988]
[1733523603362,2.0986,237.83,237.73,3.3486]
[1733523603363,2.0986,237.83,237.8,2.0988]
[1733523604261,2.0,237.85,237.73,3.3486]
[1733523604462,2.0,237.85,237.74,1.79754546]
[1733523604661,2.0,237.85,237.75,1.79754546]
[1733523604858,2.0,237.85,237.81,2.0986]
[1733523605263,2.0983,237.86,237.81,2.0986]
[1733523605455,2.0955,238.18,238.08,2.0962]
[1733523605762,3.8986,238.24,238.01,2.24]
[1733523606064,2.24,238.2,238.02,5.44467264]
[1733523606257,2.24,238.2,238.12,2.0959]
[1733523606764,2.24,238.2,238.03,2.9431]
[1733523606959,2.24,238.2,238.04,1.79200268]
[1733523607158,2.24,238.2,238.03,0.7031]
[1733523607159,2.24,238.2,238.03,2.9431]
[1733523608762,2.0954,238.19,238.07,2.0964]
[1733523609263,2.24,238.18,238.07,2.0964]
[1733523610765,2.24,238.18,238.03,2.24]
[1733523610964,2.24,238.18,238.05,2.0965]
[1733523611667,2.0957,238.15,238.05,2.0965]
[1733523613471,2.0957,238.15,238.03,2.24]
[1733523613472,4.3355,238.18,238.09,2.0962]
[1733523616169,2.0955,238.18,238.09,2.0962]
[1733523616475,2.24,238.17,238.1,2.0961]
[1733523617973,2.24,238.16,238.11,2.096]
[1733523618567,2.24,238.16,238.08,2.0963]
[1733523618771,2.24,238.16,238.03,2.24]
[1733523619168,2.24,238.16,238.04,1.7777846]
[1733523619475,2.24,238.16,238.03,2.24]
[1733523619669,2.0958,238.14,238.07,2.0964]
[1733523619866,2.24,238.16,238.03,2.24]
[1733523620074,2.24,238.16,238.04,1.77745501]
[1733523620273,2.24,238.16,238.03,2.24]
[1733523620472,2.24,238.16,238.04,1.7773064]
[1733523620673,2.24,238.16,238.03,2.24]
[1733523620874,2.24,238.16,238.04,1.7773322]
[1733523621171,2.24,238.16,238.03,2.24]
[1733523621373,2.0958,238.14,238.07,2.0964]
[1733523623974,2.0959,238.13,238.07,2.0964]
[1733523629480,2.0959,238.13,238.03,2.24]
[1733523629780,2.0959,238.13,238.08,2.0963]
[1733523632778,2.24,238.16,238.02,1.4083]
[1733523632779,2.096,238.12,238.06,2.0965]
[1733523632980,2.096,238.12,238.02,3.6483]
[1733523633179,2.096,238.12,238.03,7.66803779]
[1733523633481,2.096,238.12,238.07,2.0963]
[1733523633783,2.096,238.12,238.02,3.6483]
[1733523633977,2.096,238.12,238.03,7.66961205]
[1733523634178,2.096,238.12,238.04,1.77901474]
[1733523634375,2.096,238.12,238.05,1.77901474]
[1733523634678,2.096,238.12,238.07,2.0963]
[1733523634986,2.0958,238.14,238.02,3.6483]
[1733523635179,2.0958,238.14,238.09,2.0962]
[1733523637682,2.0958,238.14,238.1,2.0961]
[1733523639286,2.24,238.17,238.1,2.0961]
[1733523639589,2.0959,238.13,238.1,2.0961]
[1733523640291,2.14,238.16,238.02,3.6483]
[1733523640491,2.0957,238.15,238.11,2.096]
[1733523640688,2.0957,238.15,238.02,3.6483]
[1733523640881,2.0957,238.15,238.03,7.68380444]
[1733523641089,2.0957,238.15,238.04,1.78233608]
[1733523641281,2.0957,238.15,238.05,1.78233608]
[1733523641589,2.0957,238.15,238.06,1.78233608]
[1733523641889,2.0957,238.15,238.11,2.096]
[1733523643291,3.8986,238.24,238.02,3.6483]
[1733523643491,2.14,238.23,238.03,7.69992537]
[1733523643785,2.0955,238.18,238.13,2.0958]
[1733523643992,2.14,238.18,238.13,2.0958]
[1733523644988,2.0958,238.14,238.07,2.14]
[1733523645193,2.0958,238.14,238.08,1.78787779]
[1733523645390,2.0958,238.14,238.07,2.14]
[1733523645590,2.0958,238.14,238.08,1.78803563]
[1733523645790,2.0958,238.14,238.09,1.78803563]
[1733523645996,2.0958,238.14,238.1,1.78803563]
[1733523646196,2.0958,238.14,238.07,2.14]
[1733523646393,2.0958,238.14,238.08,1.78820545]
[1733523646593,2.0958,238.14,238.09,1.78820545]
[1733523646788,2.0958,238.14,238.1,1.78820545]
[1733523646994,2.0958,238.14,238.07,2.14]
[1733523647198,2.0958,238.14,238.1,2.0961]
[1733523647394,2.0958,238.14,238.11,1.78992786]
[1733523647595,2.0958,238.14,238.1,2.0961]
[1733523647794,2.0958,238.14,238.11,1.79229625]
[1733523648093,2.0958,238.14,238.1,2.0961]
[1733523648492,2.0958,238.14,238.11,1.79521712]
[1733523648692,2.0958,238.14,238.12,1.79521712]
[1733523648995,2.0958,238.14,238.1,2.0961]
[1733523649191,2.0958,238.14,238.11,1.79520224]
[1733523649497,2.0958,238.14,238.12,1.79520224]
[1733523649697,2.0958,238.14,238.13,1.79520224]
[1733523650301,2.0958,238.14,238.13,7.77821028]
[1733523652493,2.0958,238.14,238.13,3.09109592]
[1733523652698,2.0958,238.14,238.13,7.78921282]
[1733523654601,2.0958,238.14,238.13,1.80681006]
[1733523656100,2.0958,238.14,238.13,1.80671335]
[1733523656294,2.0958,238.14,238.11,2.096]
[1733523656802,2.0958,238.14,238.12,1.80669324]
[1733523656996,2.0958,238.14,238.13,1.80669324]
[1733523657201,2.0958,238.14,238.11,2.096]
[1733523657496,2.0958,238.14,238.12,1.80669644]
[1733523657696,2.0958,238.14,238.11,2.096]
[1733523657697,2.0958,238.14,238.13,1.80669644]
[1733523658297,2.0954,238.19,238.15,2.0956]
[1733523658495,2.0954,238.19,238.07,2.14]
[1733523658709,2.0954,238.19,238.08,22.52869621]
[1733523658896,2.0954,238.19,238.09,16.34743196]
[1733523659105,2.0954,238.19,238.1,16.34743196]
[1733523659307,2.14,238.24,238.11,7.78818659]
[1733523659506,2.0955,238.18,238.12,1.80658462]
[1733523659702,2.0955,238.18,238.13,1.80658462]
[1733523659909,2.0955,238.18,238.14,1.80658462]
[1733523660110,2.0955,238.18,238.07,2.14]
[1733523660412,2.0955,238.18,238.13,2.0958]
[1733523660616,2.0955,238.18,238.14,1.80624134]
[1733523660810,2.0955,238.18,238.13,2.0958]
[1733523661006,2.0955,238.18,238.14,1.80624367]
[1733523661315,2.0955,238.18,238.13,2.0958]
[1733523662216,2.0954,238.19,238.15,2.0957]
[1733523662407,2.14,238.24,238.15,2.0957]
[1733523662813,2.0953,238.2,238.15,2.0957]
[1733523663117,2.0953,238.2,238.16,2.0956]
[1733523665719,2.0954,238.19,238.14,2.0957]
[1733523666422,2.0954,238.18,238.14,2.0957]
[1733523673426,2.0954,238.18,238.15,2.0957]
[1733523676231,2.0954,238.19,238.15,2.0957]
[1733523680733,2.0955,238.18,238.13,2.0958]
[1733523681033,2.04,238.22,238.12,2.14]
[1733523681228,2.0953,238.2,238.15,2.0957]
[1733523683332,2.04,238.22,238.15,2.0957]
[1733523683633,2.0954,238.19,238.15,2.0957]
[1733523684135,2.0955,238.18,238.14,2.0958]
[1733523684337,2.0955,238.18,238.15,1.80405352]
[1733523684537,2.0955,238.18,238.14,2.0958]
[1733523684836,2.0955,238.18,238.13,2.0958]
[1733523685037,2.0955,238.18,238.14,1.80404764]
[1733523685233,2.0955,238.18,238.13,2.0958]
[1733523685434,2.0955,238.18,238.14,1.80426152]
[1733523685635,2.0955,238.18,238.13,2.0958]
[1733523685835,2.0955,238.18,238.14,1.80416279]
[1733523686038,2.0955,238.18,238.13,2.0958]
[1733523686335,2.0955,238.18,238.14,1.80408075]
[1733523686535,2.0955,238.18,238.14,2.0958]
[1733523690840,2.04,238.21,238.14,2.0958]
[1733523691038,2.0954,238.19,238.14,2.0957]
[1733523694643,2.04,238.21,238.09,2.04]
[1733523694941,4.1352,238.21,238.17,2.0955]
[1733523696044,2.7361,238.27,238.19,2.0953]
[1733523696045,2.095,238.23,238.19,2.0953]
[1733523696231,4.095,238.23,238.19,2.0953]
[1733523697439,2.095,238.23,238.19,2.0953]
[1733523700042,2.0951,238.22,238.19,2.0953]
[1733523706752,2.0951,238.22,238.2,2.0953]
[1733523707246,2.095,238.22,238.14,2.0]
[1733523707453,2.095,238.22,238.15,7.78028424]
[1733523707649,2.095,238.22,238.16,4.69320269]
[1733523707849,2.095,238.22,238.17,1.8049202]
[1733523708050,2.095,238.22,238.18,1.8049202]
[1733523708256,2.0949,238.23,238.2,2.0952]
[1733523709763,2.0948,238.25,238.22,2.095]
[1733523709957,2.0948,238.25,238.14,2.0]
[1733523710159,2.0948,238.25,238.15,11.38893438]
[1733523710358,2.0948,238.25,238.16,7.77885602]
[1733523710665,2.0948,238.25,238.17,4.69239174]
[1733523710860,2.0948,238.25,238.18,1.80460833]
[1733523711056,2.0948,238.25,238.19,1.80460833]
[1733523711261,2.0948,238.25,238.17,2.0955]
[1733523711456,2.0948,238.25,238.18,1.80376105]
[1733523711660,2.0948,238.25,238.19,1.80376105]
[1733523711860,2.0948,238.25,238.14,2.0]
[1733523712057,2.0948,238.25,238.15,3.08510712]
[1733523712362,2.0948,238.25,238.16,7.77528586]
[1733523712561,2.0948,238.25,238.2,2.0952]
[1733523714460,2.0949,238.24,238.2,2.0952]
[1733523715358,4.7361,238.27,238.17,2.0954]
[1733523716559,4.7361,238.27,238.15,2.0]
[1733523716765,2.0951,238.22,238.18,2.0954]
[1733523718965,2.0954,238.19,238.14,2.0958]
[1733523719166,2.0954,238.19,238.15,1.80304861]
[1733523719362,2.0954,238.19,238.16,1.80304861]
[1733523719567,2.0954,238.19,238.13,2.0]
[1733523719769,2.0954,238.19,238.14,7.77285951]
[1733523719970,2.0954,238.19,238.15,1.80317617]
[1733523720168,2.0954,238.19,238.13,2.0]
[1733523720369,2.0954,238.19,238.14,1.80326018]
[1733523720570,2.0954,238.19,238.15,1.80326018]
[1733523720770,2.0954,238.19,238.15,2.0957]
[1733523720964,2.0953,238.2,238.15,2.0957]
[1733523721169,2.0953,238.2,238.16,1.80307378]
[1733523721471,2.0953,238.2,238.15,2.0957]
[1733523721672,2.0953,238.2,238.16,1.80302603]
[1733523721872,2.0953,238.2,238.15,2.0957]
[1733523722074,2.0953,238.2,238.16,1.80301795]
[1733523722269,2.0953,238.2,238.15,2.0957]
[1733523722471,2.0953,238.2,238.16,3.89869354]
[1733523722670,2.0953,238.2,238.16,2.0956]
[1733523726371,4.7361,238.27,238.13,2.0]
[1733523726674,2.0952,238.21,238.14,1.8035843]
[1733523726869,2.0952,238.21,238.15,1.8035843]
[1733523727064,2.0952,238.21,238.16,1.8035843]
[1733523727265,2.0952,238.21,238.13,2.0]
[1733523727472,2.0952,238.21,238.14,1.80375664]
[1733523727673,2.0952,238.21,238.15,1.80375664]
[1733523727873,2.0952,238.21,238.16,2.0956]
[1733523728876,2.0949,238.24,238.16,2.0956]
[1733523729075,4.7361,238.27,238.16,2.0956]
[1733523729275,4.7361,238.27,238.13,2.0]
[1733523729578,2.0952,238.21,238.17,2.0955]
[1733523730278,2.0954,238.19,238.15,2.0956]
[1733523731878,2.0954,238.19,238.14,2.0958]
[1733523732179,2.0954,238.19,238.15,1.80444481]
[1733523732376,2.0954,238.19,238.14,2.0958]
[1733523732580,2.0954,238.19,238.15,1.80453647]
[1733523732881,2.0954,238.19,238.14,2.0958]
[1733523733282,2.0954,238.19,238.15,1.804591]
[1733523733482,2.0954,238.19,238.14,2.0958]
[1733523733683,2.0954,238.19,238.15,1.80462702]
[1733523733982,2.0954,238.19,238.14,2.0958]
[1733523734189,2.0954,238.19,238.15,1.80456171]